bitfinex-derivatives/quotes_BNBF0:USTF0_20251203
["timestamp","ask_amount","ask_price","bid_price","bid_amount"]
[1764766911836,1.63645863,903.25,902.15,0.70685997]
[1764766912035,1.63645863,903.28,902.16,0.70685997]
[1764766912341,0.19276147,902.99,902.17,0.70685997]
[1764766912540,0.19276147,902.99,902.18,0.70685997]
[1764766912739,0.19276147,902.99,902.19,0.70685997]
[1764766912940,0.19276147,902.99,902.2,0.70685997]
[1764766913142,0.19276147,902.99,902.21,0.70685997]
[1764766913442,0.19276147,902.99,902.22,0.70685997]
[1764766913641,0.19276147,902.99,902.23,0.70685997]
[1764766913841,0.19276147,902.99,902.24,0.70685997]
[1764766914142,0.19276147,902.99,902.25,0.70685997]
[1764766914339,0.19276147,902.99,902.26,0.70685997]
[1764766914542,1.63645863,903.36,902.27,0.70685997]
[1764766914745,0.0129406,903.89,902.28,0.70685997]
[1764766914746,0.19273532,903.11,902.28,0.70685997]
[1764766914940,0.19273532,903.11,902.29,0.70685997]
[1764766915141,0.19273532,903.11,902.3,0.70685997]
[1764766915345,0.19273532,903.11,902.31,0.70685997]
[1764766915644,0.19273532,903.11,902.24,0.8220103]
[1764766915645,0.19273532,903.11,902.32,0.70685997]
[1764766915842,0.00894133,904.01,902.33,0.70685997]
[1764766915843,1.63645863,903.59,902.33,0.70685997]
[1764766916044,3.88921542,904.51,902.33,0.70685997]
[1764766916045,0.19268196,903.47,902.49,0.8220103]
[1764766916241,0.19268196,903.47,902.5,0.70685997]
[1764766916546,0.19268196,903.47,902.51,0.70685997]
[1764766916744,0.19268196,903.47,902.52,0.70685997]
[1764766917045,0.19268196,903.47,902.53,0.70685997]
[1764766917241,0.19268196,903.47,902.54,0.70685997]
[1764766917541,0.19268196,903.47,902.55,0.70685997]
[1764766917747,0.19268196,903.47,902.56,0.70685997]
[1764766917942,0.19268196,903.47,902.57,0.70685997]
[1764766918246,0.19268196,903.47,902.58,0.70685997]
[1764766918546,0.19268196,903.47,902.59,0.70685997]
[1764766918742,0.19268196,903.47,902.6,0.70685997]
[1764766918946,0.19268196,903.47,902.61,0.70685997]
[1764766919247,0.19268196,903.47,902.62,0.70685997]
[1764766919446,0.19268196,903.47,902.63,0.70685997]
[1764766919647,0.19268196,903.47,902.64,0.70685997]
[1764766919941,0.19268196,903.47,902.65,0.70685997]
[1764766920245,0.19268196,903.47,902.66,0.70685997]
[1764766920445,0.19268196,903.47,902.67,0.70685997]
[1764766920645,0.19268196,903.47,902.68,0.70685997]
[1764766920942,0.19268196,903.47,902.69,0.70685997]
[1764766921146,0.19268196,903.47,902.7,0.70685997]
[1764766921345,0.19268196,903.47,902.71,0.70685997]
[1764766921545,0.19268196,903.47,902.72,0.70685997]
[1764766921847,0.19268196,903.47,902.73,0.70685997]
[1764766922047,0.19268196,903.47,902.74,0.70685997]
[1764766922243,0.19268196,903.47,902.75,0.70685997]
[1764766922447,0.19268196,903.47,902.76,0.70685997]
[1764766922649,0.19268196,903.47,902.77,0.70685997]
[1764766922944,0.19268196,903.47,902.48,0.8220103]
[1764766923143,0.19268196,903.47,902.49,0.70015897]
[1764766923347,0.19268196,903.47,902.5,0.70015897]
[1764766923548,0.19268196,903.47,902.51,0.70015897]
[1764766923745,0.19268196,903.47,902.52,0.70015897]
[1764766923948,0.19268196,903.47,902.53,0.70015897]
[1764766924249,0.19268196,903.47,902.54,0.70015897]
[1764766924449,0.19268196,903.47,902.46,0.8220103]
[1764766924450,0.19268196,903.47,902.55,0.70015897]
[1764766924650,0.19268196,903.47,902.56,0.70015897]
[1764766924844,0.19268196,903.47,902.57,0.70015897]
[1764766925147,0.19268196,903.47,902.46,0.8220103]
[1764766925148,0.19268196,903.47,902.58,0.70015897]
[1764766925349,0.19268196,903.47,902.3,1.086424]
[1764766925350,0.19268196,903.47,902.59,0.70015897]
[1764766925549,0.19268196,903.47,902.6,0.70015897]
[1764766925749,0.19268196,903.47,902.61,0.70015897]
[1764766926050,0.19268196,903.47,902.62,0.70015897]
[1764766926347,0.19268196,903.47,902.63,0.70015897]
[1764766926546,0.19268196,903.47,902.64,0.70015897]
[1764766926750,0.19268196,903.47,902.65,0.70015897]
[1764766926946,0.19268196,903.47,902.66,0.70015897]
[1764766927150,0.19268196,903.47,902.67,0.70015897]
[1764766927450,0.19268196,903.47,902.68,0.70015897]
[1764766927651,0.19268196,903.47,902.69,0.70015897]
[1764766927852,0.19268196,903.47,902.7,0.70015897]
[1764766928049,0.19268196,903.47,902.71,0.70015897]
[1764766928353,0.19268196,903.47,902.7,1.568]
[1764766930556,0.19268196,903.47,902.71,0.69782934]
[1764766930754,0.19268196,903.47,902.72,0.69782934]
[1764766931050,0.19268196,903.47,902.73,0.69782934]
[1764766931249,0.19268196,903.47,902.7,1.568]
[1764766931250,0.19268196,903.47,902.74,0.69782934]
[1764766931451,0.19268196,903.47,902.75,0.69782934]
[1764766931655,0.19268196,903.47,902.7,1.568]
[1764766931656,0.19268196,903.47,902.76,0.69782934]
[1764766931855,0.19268196,903.47,902.77,0.69782934]
[1764766932055,0.19268196,903.47,902.78,0.69782934]
[1764766932256,0.19268196,903.47,902.79,0.69782934]
[1764766932555,0.19268196,903.47,902.8,0.69782934]
[1764766932856,0.19268196,903.47,902.7,1.568]
[1764766933056,0.19268196,903.47,902.71,0.69765074]
[1764766933352,0.01171361,904.37,902.72,0.69765074]
[1764766933554,1.63645863,904.66,902.73,0.69765074]
[1764766933757,0.01280769,905.27,902.74,0.69765074]
[1764766933758,0.19258439,903.69,902.74,0.69765074]
[1764766933956,0.01105706,904.59,902.75,0.69765074]
[1764766934154,0.1925732,903.69,902.76,0.69765074]
[1764766934353,0.01141338,904.59,902.77,0.69765074]
[1764766934553,1.63645863,904.79,902.78,0.69765074]
[1764766934760,10.44393957,904.78,902.79,0.69765074]
[1764766934954,10.44393957,904.78,902.8,0.69765074]
[1764766935154,8.80748094,904.78,902.81,0.69765074]
[1764766935352,8.80748094,904.78,902.82,0.69765074]
[1764766935653,8.80748094,904.78,902.83,0.69765074]
[1764766935654,0.19256734,904.29,902.83,0.69765074]
[1764766935954,0.19256734,904.29,902.84,0.69765074]
[1764766936153,0.19256734,904.29,902.7,1.568]
[1764766936154,0.19256734,904.29,902.85,0.69765074]
[1764766936358,0.19256734,904.29,902.86,0.69765074]
[1764766936562,0.19256734,904.29,902.87,0.69765074]
[1764766936757,0.19256734,904.29,902.88,0.69765074]
[1764766936955,0.19256734,904.29,902.89,0.69765074]
[1764766937154,0.19256734,904.29,902.9,0.69765074]
[1764766937355,0.19256734,904.29,902.91,0.69765074]
[1764766937558,0.19256734,904.29,902.92,0.69765074]
[1764766937754,0.19256734,904.29,902.93,0.69765074]
[1764766937956,0.19256734,904.29,902.94,0.69765074]
[1764766938256,0.19256734,904.29,902.95,0.69765074]
[1764766938462,0.19256734,904.29,902.96,0.69765074]
[1764766938760,0.19256734,904.29,903.09,0.8220103]
[1764766938959,0.19256734,904.29,902.7,1.568]
[1764766938960,0.19256734,904.29,903.1,0.69765074]
[1764766939160,0.19256734,904.29,903.11,0.69765074]
[1764766939460,0.19256734,904.29,902.7,1.568]
[1764766939461,0.19256734,904.29,903.12,0.69765074]
[1764766939662,0.19256734,904.29,903.13,0.69765074]
[1764766939857,0.19256734,904.29,903.14,0.69765074]
[1764766940060,0.19256734,904.29,903.15,0.69765074]
[1764766940260,0.19256734,904.29,903.16,0.69765074]
[1764766940457,0.19256734,904.29,902.93,0.8220103]
[1764766940458,0.19256734,904.29,903.17,0.69765074]
[1764766940662,0.19256734,904.29,903.18,0.69765074]
[1764766940863,0.19256734,904.29,903.19,0.69765074]
[1764766941163,0.19256734,904.29,903.2,0.69765074]
[1764766941361,0.19256734,904.29,903.21,0.69765074]
[1764766941564,0.19256734,904.29,902.87,0.8220103]
[1764766941759,0.19256734,904.29,902.88,0.69393091]
[1764766941965,0.19256734,904.29,902.89,0.69393091]
[1764766942259,0.19256734,904.29,902.9,0.69393091]
[1764766942463,0.19256734,904.29,902.91,0.69393091]
[1764766942664,0.19256734,904.29,902.92,0.69393091]
[1764766942966,0.19256734,904.29,902.93,0.69393091]
[1764766943161,0.19256734,904.29,902.94,0.69393091]
[1764766943361,0.19256734,904.29,902.95,0.69393091]
[1764766943563,0.19256734,904.29,902.96,0.69393091]
[1764766943763,0.19256734,904.29,902.97,0.69393091]
[1764766943964,0.19256734,904.29,902.98,0.69393091]
[1764766944161,0.19256734,904.29,902.99,0.69393091]
[1764766944361,0.19256734,904.29,903.0,0.69393091]
[1764766944563,0.19256734,904.29,903.01,0.69393091]
[1764766944764,0.19256734,904.29,903.02,0.69393091]
[1764766944964,0.19256734,904.29,903.03,0.69393091]
[1764766945162,0.19256734,904.29,903.04,0.69393091]
[1764766945362,0.19256734,904.29,903.05,0.69393091]
[1764766945563,0.19256734,904.29,903.06,0.69393091]
[1764766945865,0.19256734,904.29,903.07,0.69393091]
[1764766946070,0.19256734,904.29,903.08,0.69393091]
[1764766946370,0.19256734,904.29,903.09,0.69393091]
[1764766946572,0.19256734,904.29,903.1,0.69393091]
[1764766946872,0.19256734,904.29,903.11,0.69393091]
[1764766947073,0.19256734,904.29,903.12,0.69393091]
[1764766947369,0.19256734,904.29,903.13,0.69393091]
[1764766947574,0.19256734,904.29,903.09,2.568]
[1764766947772,0.19256734,904.29,903.1,0.69263755]
[1764766948073,0.19256734,904.29,903.11,0.69263755]
[1764766948269,0.19256734,904.29,903.12,0.69263755]
[1764766948472,0.19256734,904.29,903.13,0.69263755]
[1764766948669,0.19256734,904.29,903.09,2.568]
[1764766948873,0.19256734,904.29,903.1,0.69262782]
[1764766949070,0.19256734,904.29,903.11,0.69262782]
[1764766949269,0.19256734,904.29,903.12,0.69262782]
[1764766949473,0.19256734,904.29,903.09,2.568]
[1764766949672,0.19256734,904.29,903.1,0.69250943]
[1764766949870,0.19256734,904.29,903.11,0.69250943]
[1764766950070,0.19256734,904.29,903.12,0.69250943]
[1764766950275,0.19256734,904.29,903.09,2.568]
[1764766950475,0.19256734,904.29,903.1,0.69241088]
[1764766950676,0.19256734,904.29,903.11,0.69241088]
[1764766950876,0.19256734,904.29,903.12,0.69241088]
[1764766951074,0.19256734,904.29,903.09,2.568]
[1764766951274,0.19256734,904.29,903.1,0.69233606]
[1764766951474,0.19256734,904.29,903.11,0.69233606]
[1764766951677,0.19256734,904.29,903.12,0.69233606]
[1764766951872,0.19256734,904.29,903.13,0.69233606]
[1764766952076,0.19256734,904.29,903.14,0.69233606]
[1764766952271,0.19256734,904.29,903.09,2.568]
[1764766952272,0.19256734,904.29,903.15,0.69233606]
[1764766952476,0.19256734,904.29,903.16,0.69233606]
[1764766952675,0.19256734,904.29,903.09,2.568]
[1764766952874,0.19256734,904.29,903.1,0.69237659]
[1764766953075,0.19256734,904.29,903.11,0.69237659]
[1764766953278,0.19256734,904.29,903.12,0.69237659]
[1764766953477,0.19256734,904.29,903.13,0.69237659]
[1764766953675,0.19256734,904.29,903.14,0.69237659]
[1764766953874,0.19256734,904.29,903.09,2.568]
[1764766960681,0.19256734,904.29,903.09,1.159]
[1764766962981,0.19256734,904.29,903.1,1.563]
[1764766963384,0.19256734,904.29,903.1,9.01538172]
[1764766971390,1.10146253,904.28,903.1,9.01538172]
[1764766971596,0.19256734,904.29,903.1,9.01538172]
[1764766971795,1.10146341,904.28,903.1,9.01538172]
[1764766971994,1.10146941,904.27,903.1,9.01538172]
[1764766972195,0.19256734,904.29,903.1,9.01538172]
[1764766972491,1.10146915,904.28,903.1,9.01538172]
[1764766972691,1.10146915,904.27,903.1,9.01538172]
[1764766972893,1.10146915,904.26,903.1,9.01538172]
[1764766973089,0.19256734,904.29,903.1,9.01538172]
[1764766973291,1.10159656,904.28,903.1,9.01538172]
[1764766973597,1.10159656,904.27,903.1,9.01538172]
[1764766973793,0.19256734,904.29,903.1,9.01538172]
[1764766973995,1.10170847,904.28,903.1,9.01538172]
[1764766974295,1.10170847,904.27,903.1,9.01538172]
[1764766974495,0.19256734,904.29,903.1,9.01538172]
[1764766974691,1.1017082,904.28,903.1,9.01538172]
[1764766974991,0.19256734,904.29,903.1,9.01538172]
[1764766975294,1.10169972,904.28,903.1,9.01538172]
[1764766975496,0.19256734,904.29,903.1,9.01538172]
[1764766975697,1.10169963,904.28,903.1,9.01538172]
[1764766975997,0.19256734,904.29,903.1,9.01538172]
[1764766976291,1.10169963,904.28,903.1,9.01538172]
[1764766976493,0.19256734,904.29,903.1,9.01538172]
[1764766976691,1.10169963,904.28,903.1,9.01538172]
[1764766976895,0.19256734,904.29,903.1,9.01538172]
[1764766977095,1.10169963,904.28,903.1,9.01538172]
[1764766977395,0.19256734,904.29,903.1,9.01538172]
[1764766977594,1.10180284,904.28,903.1,9.01538172]
[1764766977794,0.19256734,904.29,903.1,9.01538172]
[1764766978094,1.10180284,904.28,903.1,9.01538172]
[1764766978397,1.10190209,904.27,903.1,9.01538172]
[1764766978595,0.19256734,904.29,903.1,9.01538172]
[1764766978797,1.10190209,904.28,903.1,9.01538172]
[1764766978997,1.10190209,904.27,903.1,9.01538172]
[1764766979297,0.19256734,904.29,903.1,9.01538172]
[1764766979500,1.10199759,904.28,903.1,9.01538172]
[1764766979794,1.10199759,904.27,903.1,9.01538172]
[1764766980094,0.19256734,904.29,903.1,9.83739202]
[1764766981299,0.19256734,904.29,903.1,9.01538172]
[1764766981796,0.19256734,904.29,903.1,9.83739202]
[1764766981995,0.19256734,904.29,903.1,9.01538172]
[1764766983101,1.10208925,904.28,903.1,9.01538172]
[1764766983398,0.19256734,904.29,903.11,0.8220103]
[1764766983799,0.19256734,904.29,903.13,0.8220103]
[1764766984200,0.19256734,904.29,903.14,0.8220103]
[1764766985403,0.19256734,904.29,903.15,0.8220103]
[1764766986301,0.19256734,904.29,903.17,0.8220103]
[1764766986802,0.19256734,904.29,903.2,0.8220103]
[1764766987001,0.19256734,904.29,903.26,0.8220103]
[1764766987205,1.08496884,904.6,903.39,0.8220103]
[1764766987400,1.08496884,904.77,903.54,0.8220103]
[1764766987603,0.19247947,904.44,903.54,0.8220103]
[1764766988903,0.19247947,904.44,903.55,0.8220103]
[1764766989304,0.19247947,904.44,903.56,0.8220103]
[1764766989909,0.19247947,904.44,903.57,1.619]
[1764766990207,0.19247947,904.44,903.57,2.4410103]
[1764766991207,0.19247947,904.44,903.58,0.8220103]
[1764766991609,0.19247947,904.44,903.57,2.4410103]
[1764766991809,0.19247947,904.44,903.57,1.619]
[1764767008818,0.19247947,904.44,903.35,0.8220103]
[1764767009611,0.19247947,904.44,903.34,0.8220103]
[1764767010113,0.19247947,904.44,903.3,0.8220103]
[1764767010718,0.19247947,904.44,903.31,1.324]
[1764767011217,0.19247947,904.44,903.31,2.1460103]
[1764767011420,0.19247947,904.44,903.35,0.8220103]
[1764767011714,0.19247947,904.44,903.36,0.8220103]
[1764767012518,0.19247947,904.44,903.38,0.8220103]
[1764767012722,0.19247947,904.44,903.42,0.8220103]
[1764767013521,0.19247947,904.44,903.31,1.324]
[1764767013522,0.19247947,904.44,903.5,0.8220103]
[1764767013818,0.19247947,904.44,903.53,0.8220103]
[1764767014220,0.19247947,904.44,903.31,1.324]
[1764767014221,0.19247947,904.44,903.54,0.8220103]
[1764767014418,0.19247947,904.44,903.51,0.8220103]
[1764767014622,1.08496884,904.2,903.31,1.324]
[1764767014920,0.82474988,904.0,903.31,1.324]
[1764767015422,0.82474988,903.99,903.31,1.324]
[1764767016219,0.82474988,903.98,903.31,1.324]
[1764767018122,0.82474988,903.96,903.31,1.324]
[1764767020327,0.82474988,904.08,903.31,1.324]
[1764767023421,0.82474988,904.07,903.31,1.324]
[1764767023622,0.82474988,903.92,903.31,1.324]
[1764767023822,0.82474988,903.78,903.31,1.324]
[1764767024721,0.82474988,903.7,903.31,1.324]
[1764767025222,0.82474988,903.6,903.31,1.324]
[1764767025425,0.82474988,903.48,903.31,1.324]
[1764767025627,0.82474988,903.39,903.31,1.324]
[1764767025926,1.08496884,903.42,903.31,1.324]
[1764767026126,1.10787253,903.41,903.31,1.324]
[1764767026422,1.08496884,903.42,903.31,1.324]
[1764767026923,1.08496884,903.42,903.12,1.217]
[1764767027128,0.82555317,903.26,903.12,1.217]
[1764767028431,0.82555317,903.3,903.12,1.217]
[1764767028929,0.82555317,903.31,903.12,1.217]
[1764767029328,0.82555317,903.34,903.12,1.217]
[1764767030432,0.82555317,903.37,903.12,1.217]
[1764767031330,0.82555317,903.38,903.12,1.217]
[1764767031732,0.00907365,904.27,903.12,1.217]
[1764767031733,0.82555317,903.39,903.12,1.217]
[1764767032032,0.82555317,903.44,903.12,1.217]
[1764767032228,0.82555317,903.48,903.12,1.217]
[1764767032634,0.82555317,903.6,903.12,1.217]
[1764767032835,0.82555317,903.63,903.12,1.217]
[1764767033135,1.08496884,903.79,903.12,1.217]
[1764767033136,0.82555317,903.62,903.12,1.217]
[1764767033434,0.82555317,903.63,903.12,1.217]
[1764767033735,0.82555317,903.64,903.12,1.217]
[1764767034434,0.82555317,903.66,903.12,1.217]
[1764767035335,0.82555317,903.67,903.12,1.217]
[1764767036335,0.82555317,903.69,903.12,1.217]
[1764767037335,0.82555317,903.7,903.12,1.217]
[1764767038036,0.82555317,903.7,903.11,1.463]
[1764767038236,0.01024535,904.6,903.11,1.463]
[1764767038237,0.82555317,903.72,903.11,1.463]
[1764767038933,0.82555317,903.71,903.11,1.463]
[1764767039338,0.82555317,903.72,903.11,1.463]
[1764767040133,0.82555317,903.84,903.11,1.463]
[1764767040333,0.82555317,903.8,903.11,1.463]
[1764767040535,0.82555317,903.81,903.11,1.463]
[1764767040738,0.82003125,903.81,903.11,1.463]
[1764767041735,0.82003125,903.77,903.11,1.463]
[1764767042133,0.82003125,903.77,903.12,1.361]
[1764767042334,0.82003125,903.78,903.12,1.361]
[1764767043434,1.63645863,904.11,903.12,1.361]
[1764767043435,0.82003125,903.79,903.12,1.361]
[1764767044137,0.82003125,903.78,903.12,1.361]
[1764767044341,0.82003125,903.79,903.12,1.361]
[1764767045337,1.63645863,904.12,903.12,1.361]
[1764767045338,0.82003125,903.8,903.12,1.361]
[1764767046539,0.82003125,903.81,903.12,1.361]
[1764767051343,1.1075515,903.8,903.12,1.361]
[1764767051548,1.1075515,903.79,903.12,1.361]
[1764767051845,0.01072088,904.69,903.12,1.361]
[1764767051846,0.82003125,903.76,903.12,1.361]
[1764767052348,0.82003125,903.75,903.12,1.361]
[1764767053343,0.82003125,903.74,903.12,1.361]
[1764767054346,1.08496884,903.9,903.12,1.361]
[1764767054549,0.81959352,903.74,903.12,1.361]
[1764767054750,0.81959352,903.73,903.12,1.361]
[1764767055350,0.81959352,903.72,903.12,1.361]
[1764767055952,0.81959352,903.65,903.12,1.361]
[1764767056446,0.81959352,903.59,903.12,1.361]
[1764767057453,0.81959352,903.58,903.12,1.361]
[1764767057854,0.19264623,903.48,903.12,1.361]
[1764767058353,0.81959352,903.58,903.12,1.361]
[1764767058554,0.19264676,903.4,903.12,1.361]
[1764767061755,0.19264676,903.4,903.13,1.519]
[1764767062354,0.81959352,903.65,903.13,1.519]
[1764767062653,0.19263077,903.51,903.13,1.519]
[1764767063956,0.19260731,903.72,903.13,1.519]
[1764767067461,0.81959352,903.99,903.13,1.519]
[1764767067656,0.1925812,903.82,903.13,1.519]
[1764767067861,0.81959352,903.99,903.13,1.519]
[1764767068259,0.81959352,903.98,903.13,1.519]
[1764767068861,0.81959352,903.99,903.13,1.519]
[1764767069163,0.19257587,903.82,903.13,1.519]
[1764767070263,0.81959352,903.99,903.13,1.519]
[1764767070472,0.19256521,903.92,903.13,1.519]
[1764767071560,0.81959352,904.32,903.13,1.519]
[1764767071761,0.19253432,904.15,903.13,1.519]
[1764767073264,0.81959352,904.32,903.14,1.277]
[1764767073464,0.81959352,904.36,903.14,1.277]
[1764767073665,0.19251674,904.28,903.14,1.277]
[1764767074865,0.81959352,904.27,903.14,1.277]
[1764767075068,0.81959352,904.19,903.14,1.277]
[1764767075369,0.81959352,904.18,903.14,1.277]
[1764767076270,0.81959352,904.19,903.14,1.277]
[1764767076470,0.81959352,904.18,903.14,1.277]
[1764767077269,0.81959352,904.17,903.14,1.277]
[1764767079074,0.81959352,904.16,903.14,1.277]
[1764767079374,0.81959352,904.11,903.14,1.277]
[1764767080269,0.81959352,904.09,903.14,1.277]
[1764767081370,0.81959352,904.06,903.14,1.277]
[1764767081674,0.81959352,904.08,903.14,1.277]
[1764767082072,0.81959352,904.07,903.14,1.277]
[1764767082771,0.81959352,904.03,903.14,1.277]
[1764767083378,0.81959352,903.98,903.14,1.277]
[1764767084381,0.19251674,904.28,903.14,1.277]
[1764767084382,0.81959352,903.97,903.14,1.277]
[1764767085081,0.81959352,904.03,903.14,1.277]
[1764767086382,0.81959352,904.07,903.14,1.277]
[1764767086582,0.81959352,904.12,903.14,1.277]
[1764767086778,0.81959352,904.14,903.14,1.277]
[1764767087383,0.81959352,904.24,903.14,1.277]
[1764767088182,0.81959352,904.25,903.14,1.277]
[1764767088380,0.19251674,904.28,903.14,1.277]
[1764767088986,1.01211026,904.28,903.14,1.277]
[1764767089487,0.19251674,904.28,903.14,1.277]
[1764767098492,0.19251674,904.28,903.15,1.363]
[1764767104899,0.19251674,904.28,903.16,1.683]
[1764767109296,0.81959352,904.07,903.16,1.683]
[1764767109500,0.81959352,904.06,903.16,1.683]
[1764767110504,0.81959352,904.05,903.16,1.683]
[1764767111298,0.81959352,904.04,903.16,1.683]
[1764767111803,0.81959352,904.03,903.16,1.683]
[1764767111998,0.81959352,904.04,903.16,1.683]
[1764767112302,0.81959352,904.03,903.16,1.683]
[1764767112802,0.81959352,904.09,903.16,1.683]
[1764767113003,0.81959352,904.08,903.16,1.683]
[1764767113300,0.81959352,904.07,903.16,1.683]
[1764767113504,0.81959352,904.02,903.16,1.683]
[1764767114204,0.81959352,904.01,903.16,1.683]
[1764767115303,0.81959352,904.0,903.16,1.683]
[1764767115498,0.81959352,903.99,903.16,1.683]
[1764767116404,0.82353311,903.98,903.16,1.683]
[1764767117501,0.82353311,904.1,903.16,1.683]
[1764767118405,0.82353311,904.09,903.16,1.683]
[1764767119804,0.82353311,904.08,903.16,1.683]
[1764767120002,0.82353311,904.09,903.16,1.683]
[1764767120201,0.82353311,904.08,903.16,1.683]
[1764767120603,0.82353311,904.02,903.16,1.683]
[1764767121301,0.82353311,903.99,903.16,1.683]
[1764767122001,0.82353311,903.98,903.16,1.683]
[1764767122305,0.82353311,903.95,903.16,1.683]
[1764767123402,0.82353311,903.91,903.16,1.683]
[1764767123604,0.82353311,903.9,903.16,1.683]
[1764767124501,0.82353311,903.88,903.16,1.683]
[1764767125401,0.82353311,903.86,903.16,1.683]
[1764767126406,0.82353311,903.84,903.16,1.683]
[1764767127304,0.82353311,903.83,903.16,1.683]
[1764767129810,0.82353311,903.82,903.16,1.683]
[1764767131807,0.82353311,903.83,903.16,1.683]
[1764767132407,0.82353311,903.82,903.16,1.683]
[1764767133307,0.19251674,904.28,903.16,1.683]
[1764767133308,0.82353311,903.71,903.16,1.683]
[1764767134413,0.82353311,903.72,903.16,1.683]
[1764767135013,0.19251674,904.28,903.16,1.683]
[1764767135014,0.82353311,903.7,903.16,1.683]
[1764767135313,0.82353311,903.71,903.16,1.683]
[1764767136114,0.82353311,903.72,903.16,1.683]
[1764767137520,0.82353311,903.81,903.16,1.683]
[1764767141816,0.82353311,903.79,903.16,1.683]
[1764767142820,0.82353311,903.8,903.16,1.683]
[1764767143021,0.82353311,903.92,903.16,1.683]
[1764767144419,0.82353311,903.84,903.16,1.683]
[1764767147823,0.82353311,903.84,903.0,0.82074888]
[1764767148526,0.82353311,903.83,903.0,0.82074888]
[1764767149227,0.19251674,904.28,902.69,1.084]
[1764767149228,0.82353311,903.82,903.01,0.82074888]
[1764767150427,0.82353311,903.81,903.02,0.82074888]
[1764767151127,0.82353311,904.06,903.27,0.82074888]
[1764767151427,0.19251674,904.28,903.27,0.82074888]
[1764767151428,0.82353311,904.05,903.27,6.81388503]
[1764767151824,0.82353311,904.07,903.27,7.63463391]
[1764767152428,0.82353311,904.08,903.27,7.63463391]
[1764767152628,0.82353311,904.06,903.27,7.63463391]
[1764767152924,0.82353311,904.07,903.28,0.82074888]
[1764767153328,0.82353311,903.95,903.27,6.81388503]
[1764767154228,0.82353311,903.93,903.27,6.81388503]
[1764767154436,0.82353311,903.91,903.27,6.81388503]
[1764767154834,0.82353311,903.9,903.27,6.81388503]
[1764767155335,0.82353311,903.85,903.27,6.81388503]
[1764767160235,0.82353311,903.77,903.27,6.81388503]
[1764767161843,0.82353311,903.76,903.27,6.81388503]
[1764767163239,0.82353311,903.75,903.27,6.81388503]
[1764767166143,0.82353311,903.76,903.27,6.81388503]
[1764767166344,0.82353311,903.83,903.27,6.81388503]
[1764767168245,0.82353311,903.82,903.27,6.81388503]
[1764767170247,0.82353311,903.89,903.27,6.81388503]
[1764767170546,0.19251674,904.28,903.27,6.81388503]
[1764767170547,0.82353311,903.92,903.27,6.81388503]
[1764767170747,0.82353311,903.93,903.27,6.81388503]
[1764767171347,0.82353311,903.96,903.27,6.81388503]
[1764767171749,0.82353311,903.98,903.27,6.81388503]
[1764767174248,0.82353311,903.99,903.27,6.81388503]
[1764767174445,0.82353311,903.98,903.27,6.81388503]
[1764767175049,0.82353311,903.98,903.28,1.33]
[1764767177453,0.82353311,903.96,903.28,1.33]
[1764767177653,0.82353311,903.88,903.28,1.33]
[1764767178249,0.82353311,903.89,903.28,1.33]
[1764767180252,0.82353311,903.88,903.28,1.33]
[1764767180451,0.82353311,903.89,903.28,1.33]
[1764767181252,0.82353311,903.88,903.28,1.33]
[1764767181455,0.82353311,903.89,903.28,1.33]
[1764767181756,0.82353311,903.88,903.28,1.33]
[1764767184754,0.82353311,903.86,903.28,1.33]
[1764767189458,0.82353311,903.87,903.28,1.33]
[1764767191759,0.82353311,903.85,903.28,1.33]
[1764767193363,0.82353311,903.84,903.28,1.33]
[1764767195366,0.82353311,903.83,903.28,1.33]
[1764767196062,0.82353311,903.81,903.28,1.33]
[1764767196266,0.19251674,904.28,903.28,1.33]
[1764767196267,0.82353311,903.8,903.28,1.33]
[1764767197367,0.82353311,903.79,903.28,1.33]
[1764767198268,0.82353311,903.8,903.28,1.33]
[1764767200068,0.82353311,903.81,903.28,1.33]
[1764767201968,0.82353311,903.83,903.28,1.33]
[1764767202167,0.82353311,903.81,903.28,1.33]
[1764767206270,0.82353311,903.82,903.28,1.33]
[1764767209074,0.82353311,903.81,903.28,1.33]
[1764767209373,0.82353311,903.82,903.28,1.33]
[1764767211371,0.82353311,903.81,903.28,1.33]
[1764767212373,0.82353311,903.8,903.28,1.33]
[1764767212977,0.82353311,903.79,903.28,1.33]
[1764767213175,0.82353311,903.77,903.28,1.33]
[1764767213379,0.82353311,903.6,903.28,1.33]
[1764767213771,0.82353311,903.59,903.28,1.33]
[1764767213972,0.82353311,903.56,903.28,1.33]
[1764767214173,0.82353311,903.53,903.28,1.33]